[Event "Titled Tuesday Blitz April 11 Early 2023"]
[White "sebastianmarinp"]
[Black "Vargas, Mauricio"]
[BlackFideId "4404572"]
[WhiteElo "2270"]
[BlackElo "1998"]
[Result "1-0"]
[Round "10"]
[TimeControl "180+2"]
[Date "2023.04.11"]
[WhiteClock "0:01:41"]
[BlackClock "0:00:04"]

1. e4 {[%clk 0:03:00]}  c6 {[%clk 0:00:48]} 2. d4 {[%clk 0:02:59]}  d5 {[%clk 0:00:49]} 3. e5 {[%clk 0:02:59]}  Bf5 {[%clk 0:00:48]} 4. Nf3 {[%clk 0:02:58]}  e6 {[%clk 0:00:48]} 5. Be2 {[%clk 0:02:59]}  Nd7 {[%clk 0:00:48]} 6. O-O {[%clk 0:02:58]}  c5 {[%clk 0:00:48]} 7. Be3 {[%clk 0:02:55]}  cxd4 {[%clk 0:00:44]} 8. Nxd4 {[%clk 0:02:56]}  Bg6 {[%clk 0:00:43]} 9. f4 {[%clk 0:02:55]}  Ne7 {[%clk 0:00:34]} 10. g4 {[%clk 0:02:52]}  Be4 {[%clk 0:00:27]} 11. Nc3 {[%clk 0:02:44]}  Nc6 {[%clk 0:00:20]} 12. Nxe4 {[%clk 0:02:23]}  dxe4 {[%clk 0:00:20]} 13. Nxc6 {[%clk 0:02:16]}  bxc6 {[%clk 0:00:20]} 14. Qd4 {[%clk 0:02:16]}  Nb6 {[%clk 0:00:17]} 15. Qxe4 {[%clk 0:02:13]}  Nd5 {[%clk 0:00:17]} 16. Rad1 {[%clk 0:01:59]}  Qc7 {[%clk 0:00:16]} 17. Bd4 {[%clk 0:01:52]}  Be7 {[%clk 0:00:11]} 18. c4 {[%clk 0:01:50]}  Nb6 {[%clk 0:00:09]} 19. f5 {[%clk 0:01:45]}  exf5 {[%clk 0:00:08]} 20. gxf5 {[%clk 0:01:43]}  f6 {[%clk 0:00:08]} 21. exf6 {[%clk 0:01:40]}  gxf6 {[%clk 0:00:04]} 22. Bxf6 {[%clk 0:01:41]} 1-0


[Site "https://www.chess.com"]

[Event "Titled Tuesday Blitz April 11 Early 2023"]
[White "Zou, Brendan"]
[Black "Kornyukov, Alexey"]
[WhiteFideId "3221296"]
[BlackFideId "4150457"]
[WhiteElo "1852"]
[BlackElo "2352"]
[Result "1-0"]
[Round "10"]
[TimeControl "180+2"]
[Date "2023.04.11"]
[WhiteClock "0:01:55"]
[BlackClock "0:01:00"]

1. d4 {[%clk 0:03:00]}  d5 {[%clk 0:02:59]} 2. Nc3 {[%clk 0:03:01]}  Nf6 {[%clk 0:02:55]} 3. Bf4 {[%clk 0:03:01]}  c5 {[%clk 0:02:51]} 4. e3 {[%clk 0:02:59]}  cxd4 {[%clk 0:02:37]} 5. exd4 {[%clk 0:03:00]}  Nc6 {[%clk 0:02:37]} 6. Nb5 {[%clk 0:02:53]}  e5 {[%clk 0:02:16]} 7. Bxe5 {[%clk 0:02:50]}  Nxe5 {[%clk 0:01:52]} 8. dxe5 {[%clk 0:02:50]}  Ne4 {[%clk 0:01:51]} 9. Qxd5 {[%clk 0:02:45]}  Qa5+ {[%clk 0:01:11]} 10. c3 {[%clk 0:02:29]}  Bf5 {[%clk 0:01:08]} 11. Ne2 {[%clk 0:02:07]}  Be7 {[%clk 0:01:03]} 12. Ned4 {[%clk 0:02:06]}  Bg6 {[%clk 0:01:00]} 13. Nd6+ {[%clk 0:01:55]}  Bxd6 {[%clk 0:01:00]} 14. Qxa5 {[%clk 0:01:55]} 1-0


[Site "https://www.chess.com"]

[Event "Titled Tuesday Blitz April 11 Early 2023"]
[White "Grave, Jacob Templen"]
[Black "dDobravcan"]
[WhiteFideId "1542656"]
[WhiteElo "2189"]
[BlackElo "2139"]
[Result "1-0"]
[Round "10"]
[TimeControl "180+2"]
[Date "2023.04.11"]
[WhiteClock "0:00:39"]
[BlackClock "0:00:23"]

1. d4 {[%clk 0:02:58]}  d6 {[%clk 0:02:59]} 2. e4 {[%clk 0:02:54]}  Nf6 {[%clk 0:02:58]} 3. Nc3 {[%clk 0:02:53]}  c6 {[%clk 0:02:56]} 4. a4 {[%clk 0:02:45]}  Qa5 {[%clk 0:02:53]} 5. Bd2 {[%clk 0:02:43]}  Nbd7 {[%clk 0:02:43]} 6. Nf3 {[%clk 0:02:34]}  e5 {[%clk 0:02:41]} 7. b4 {[%clk 0:02:16]}  Qc7 {[%clk 0:02:33]} 8. Bc4 {[%clk 0:02:14]}  Be7 {[%clk 0:02:31]} 9. O-O {[%clk 0:02:13]}  O-O {[%clk 0:02:31]} 10. h3 {[%clk 0:02:11]}  Re8 {[%clk 0:02:14]} 11. Qb1 {[%clk 0:01:59]}  exd4 {[%clk 0:02:09]} 12. Nxd4 {[%clk 0:01:43]}  Ne5 {[%clk 0:02:07]} 13. Bb3 {[%clk 0:01:43]}  Bf8 {[%clk 0:02:04]} 14. Qa2 {[%clk 0:01:38]}  c5 {[%clk 0:01:31]} 15. bxc5 {[%clk 0:01:24]}  dxc5 {[%clk 0:01:29]} 16. Ndb5 {[%clk 0:01:24]}  Qb6 {[%clk 0:01:19]} 17. a5 {[%clk 0:01:21]}  Qd8 {[%clk 0:01:16]} 18. Rad1 {[%clk 0:01:17]}  Qe7 {[%clk 0:01:15]} 19. f4 {[%clk 0:01:15]}  c4 {[%clk 0:01:13]} 20. Ba4 {[%clk 0:00:47]}  Qc5+ {[%clk 0:00:52]} 21. Kh1 {[%clk 0:00:43]}  Ng6 {[%clk 0:00:50]} 22. e5 {[%clk 0:00:41]}  Nh5 {[%clk 0:00:47]} 23. Ne4 {[%clk 0:00:40]}  Qd4 {[%clk 0:00:23]} 24. Nxd4 {[%clk 0:00:39]} 1-0


[Site "https://www.chess.com"]

[Event "Titled Tuesday Blitz April 11 Early 2023"]
[White "hsd2016"]
[Black "Vifleemskaia, Svetlana"]
[BlackFideId "4129490"]
[WhiteElo "2096"]
[BlackElo "1930"]
[Result "0-1"]
[Round "10"]
[TimeControl "180+2"]
[Date "2023.04.11"]
[WhiteClock "0:01:25"]
[BlackClock "0:01:14"]

1. e4 {[%clk 0:03:00]}  e5 {[%clk 0:02:59]} 2. Nf3 {[%clk 0:03:01]}  Nc6 {[%clk 0:02:56]} 3. Bb5 {[%clk 0:03:01]}  a6 {[%clk 0:02:54]} 4. Bxc6 {[%clk 0:03:02]}  dxc6 {[%clk 0:02:52]} 5. O-O {[%clk 0:03:03]}  Ne7 {[%clk 0:02:50]} 6. Nc3 {[%clk 0:02:59]}  Ng6 {[%clk 0:02:49]} 7. d3 {[%clk 0:03:00]}  Be7 {[%clk 0:02:48]} 8. Be3 {[%clk 0:02:59]}  O-O {[%clk 0:02:48]} 9. Qd2 {[%clk 0:02:59]}  c5 {[%clk 0:02:47]} 10. Rad1 {[%clk 0:02:59]}  b5 {[%clk 0:02:46]} 11. Nd5 {[%clk 0:02:59]}  Bd6 {[%clk 0:02:45]} 12. Qc3 {[%clk 0:02:53]}  c6 {[%clk 0:02:42]} 13. Bg5 {[%clk 0:02:38]}  f6 {[%clk 0:02:38]} 14. Nxf6+ {[%clk 0:02:35]}  gxf6 {[%clk 0:02:37]} 15. Be3 {[%clk 0:02:36]}  Qe7 {[%clk 0:02:35]} 16. b4 {[%clk 0:02:32]}  cxb4 {[%clk 0:02:30]} 17. Qxc6 {[%clk 0:02:32]}  Be6 {[%clk 0:02:25]} 18. d4 {[%clk 0:02:22]}  Rfc8 {[%clk 0:02:21]} 19. Qb6 {[%clk 0:02:21]}  Bc4 {[%clk 0:02:08]} 20. dxe5 {[%clk 0:02:17]}  Bxe5 {[%clk 0:02:07]} 21. Nxe5 {[%clk 0:02:13]}  Nxe5 {[%clk 0:02:05]} 22. Rfe1 {[%clk 0:02:12]}  Rc6 {[%clk 0:02:02]} 23. Qd4 {[%clk 0:02:02]}  Bxa2 {[%clk 0:01:52]} 24. f4 {[%clk 0:01:55]}  Ng4 {[%clk 0:01:47]} 25. Bc1 {[%clk 0:01:38]}  Qc5 {[%clk 0:01:43]} 26. Qxc5 {[%clk 0:01:34]}  Rxc5 {[%clk 0:01:42]} 27. h3 {[%clk 0:01:35]}  Nh6 {[%clk 0:01:39]} 28. Bb2 {[%clk 0:01:30]}  Rf8 {[%clk 0:01:33]} 29. Rd6 {[%clk 0:01:26]}  Rxc2 {[%clk 0:01:20]} 30. Bd4 {[%clk 0:01:25]}  Rd2 {[%clk 0:01:14]} 0-1


[Site "https://www.chess.com"]

[Event "Titled Tuesday Blitz April 11 Early 2023"]
[White "Rosh Jain"]
[Black "Winkels, Marcel"]
[WhiteFideId "25789465"]
[BlackFideId "1003887"]
[WhiteElo "2233"]
[BlackElo "1900"]
[Result "0-1"]
[Round "10"]
[TimeControl "180+2"]
[Date "2023.04.11"]
[WhiteClock "0:00:01"]
[BlackClock "0:00:32"]

1. e4 {[%clk 0:02:55]}  c5 {[%clk 0:02:59]} 2. Nf3 {[%clk 0:02:54]}  d6 {[%clk 0:02:59]} 3. d4 {[%clk 0:02:54]}  cxd4 {[%clk 0:03:00]} 4. Nxd4 {[%clk 0:02:55]}  Nf6 {[%clk 0:03:01]} 5. Nc3 {[%clk 0:02:54]}  a6 {[%clk 0:03:01]} 6. Bc4 {[%clk 0:02:54]}  e6 {[%clk 0:03:00]} 7. Bb3 {[%clk 0:02:54]}  Nbd7 {[%clk 0:03:00]} 8. O-O {[%clk 0:02:53]}  Nc5 {[%clk 0:02:59]} 9. Bg5 {[%clk 0:02:52]}  Be7 {[%clk 0:02:58]} 10. f4 {[%clk 0:02:47]}  Qc7 {[%clk 0:02:56]} 11. Qf3 {[%clk 0:02:45]}  O-O {[%clk 0:02:36]} 12. Rae1 {[%clk 0:02:43]}  Nxb3 {[%clk 0:02:30]} 13. axb3 {[%clk 0:02:41]}  b5 {[%clk 0:02:31]} 14. e5 {[%clk 0:02:39]}  Bb7 {[%clk 0:02:31]} 15. exf6 {[%clk 0:02:38]}  Bxf3 {[%clk 0:02:24]} 16. fxe7 {[%clk 0:02:37]}  Rfe8 {[%clk 0:02:23]} 17. Rxf3 {[%clk 0:02:06]}  Qc5 {[%clk 0:02:17]} 18. Rd3 {[%clk 0:02:04]}  e5 {[%clk 0:02:14]} 19. fxe5 {[%clk 0:01:58]}  dxe5 {[%clk 0:02:14]} 20. Ne4 {[%clk 0:01:58]}  Qa7 {[%clk 0:02:10]} 21. Nf6+ {[%clk 0:01:43]}  gxf6 {[%clk 0:01:48]} 22. Bxf6 {[%clk 0:01:42]}  Rxe7 {[%clk 0:01:48]} 23. Bxe7 {[%clk 0:00:44]}  Qxe7 {[%clk 0:01:47]} 24. Nf5 {[%clk 0:00:39]}  Qc5+ {[%clk 0:01:37]} 25. Ne3 {[%clk 0:00:38]}  e4 {[%clk 0:01:25]} 26. Rd5 {[%clk 0:00:35]}  Qb6 {[%clk 0:01:24]} 27. Kf2 {[%clk 0:00:30]}  Rd8 {[%clk 0:01:22]} 28. Rg5+ {[%clk 0:00:25]}  Kf8 {[%clk 0:01:20]} 29. Re2 {[%clk 0:00:15]}  Rd6 {[%clk 0:01:16]} 30. g3 {[%clk 0:00:11]}  Rf6+ {[%clk 0:01:15]} 31. Kg2 {[%clk 0:00:10]}  Rf3 {[%clk 0:01:05]} 32. Ng4 {[%clk 0:00:10]}  Qe6 {[%clk 0:00:55]} 33. Re5 {[%clk 0:00:03]}  Qd7 {[%clk 0:00:49]} 34. R5xe4 {[%clk 0:00:02]}  Rf5 {[%clk 0:00:42]} 35. Ne5 {[%clk 0:00:02]}  Qd5 {[%clk 0:00:40]} 36. Nd3 {[%clk 0:00:02]}  Kg7 {[%clk 0:00:37]} 37. g4 {[%clk 0:00:02]}  Rg5 {[%clk 0:00:34]} 38. Kg3 {[%clk 0:00:02]}  Rg6 {[%clk 0:00:34]} 39. Re5 {[%clk 0:00:01]}  Qd4 {[%clk 0:00:33]} 40. R2e4 {[%clk 0:00:01]}  Qa7 {[%clk 0:00:32]} 0-1


[Site "https://www.chess.com"]

[Event "Titled Tuesday Blitz April 11 Early 2023"]
[White "Quirke, Jeffrey"]
[Black "Mesa Cruz, Juan Carlos"]
[WhiteFideId "2013029"]
[BlackFideId "6423400"]
[WhiteElo "2232"]
[BlackElo "2131"]
[Result "1-0"]
[Round "10"]
[TimeControl "180+2"]
[Date "2023.04.11"]
[WhiteClock "0:00:10"]
[BlackClock "0:01:18"]

1. e4 {[%clk 0:02:56]}  c5 {[%clk 0:02:58]} 2. Nc3 {[%clk 0:02:54]}  Nc6 {[%clk 0:02:57]} 3. f4 {[%clk 0:02:52]}  g6 {[%clk 0:02:57]} 4. Nf3 {[%clk 0:02:49]}  Bg7 {[%clk 0:02:57]} 5. Bb5 {[%clk 0:02:49]}  Nd4 {[%clk 0:02:55]} 6. Bc4 {[%clk 0:02:47]}  e6 {[%clk 0:02:55]} 7. e5 {[%clk 0:02:32]}  d5 {[%clk 0:02:47]} 8. exd6 {[%clk 0:02:27]}  Qxd6 {[%clk 0:02:46]} 9. d3 {[%clk 0:02:23]}  Ne7 {[%clk 0:02:44]} 10. O-O {[%clk 0:02:18]}  O-O {[%clk 0:02:43]} 11. Ne4 {[%clk 0:02:18]}  Qc7 {[%clk 0:02:42]} 12. c3 {[%clk 0:02:16]}  Nxf3+ {[%clk 0:02:41]} 13. Qxf3 {[%clk 0:02:15]}  a6 {[%clk 0:02:41]} 14. a4 {[%clk 0:02:14]}  Bd7 {[%clk 0:02:41]} 15. a5 {[%clk 0:02:06]}  Bc6 {[%clk 0:02:40]} 16. Qf2 {[%clk 0:01:59]}  Rac8 {[%clk 0:02:34]} 17. Nxc5 {[%clk 0:01:39]}  Bxg2 {[%clk 0:02:29]} 18. Kxg2 {[%clk 0:01:34]}  Qxc5 {[%clk 0:02:28]} 19. Qxc5 {[%clk 0:01:34]}  Rxc5 {[%clk 0:02:28]} 20. Be3 {[%clk 0:01:34]}  Rc7 {[%clk 0:02:27]} 21. Bb6 {[%clk 0:01:32]}  Rd7 {[%clk 0:02:27]} 22. d4 {[%clk 0:01:29]}  Nd5 {[%clk 0:02:24]} 23. Rae1 {[%clk 0:01:22]}  Bf6 {[%clk 0:02:17]} 24. Bc5 {[%clk 0:01:15]}  Rc8 {[%clk 0:02:16]} 25. Ba2 {[%clk 0:00:49]}  Bd8 {[%clk 0:02:12]} 26. c4 {[%clk 0:00:47]}  Nf6 {[%clk 0:02:05]} 27. b4 {[%clk 0:00:45]}  Ng4 {[%clk 0:01:49]} 28. h3 {[%clk 0:00:41]}  Nh6 {[%clk 0:01:48]} 29. d5 {[%clk 0:00:38]}  exd5 {[%clk 0:01:48]} 30. Re8+ {[%clk 0:00:34]}  Kg7 {[%clk 0:01:45]} 31. Bf8+ {[%clk 0:00:34]}  Kf6 {[%clk 0:01:39]} 32. Bxh6 {[%clk 0:00:31]}  dxc4 {[%clk 0:01:39]} 33. Bg5+ {[%clk 0:00:19]}  Kg7 {[%clk 0:01:39]} 34. Rxd8 {[%clk 0:00:18]}  Rcxd8 {[%clk 0:01:37]} 35. Bxd8 {[%clk 0:00:19]}  Rxd8 {[%clk 0:01:36]} 36. Bxc4 {[%clk 0:00:20]}  Rd4 {[%clk 0:01:36]} 37. Rc1 {[%clk 0:00:18]}  Rxf4 {[%clk 0:01:34]} 38. Bd5 {[%clk 0:00:17]}  Rxb4 {[%clk 0:01:34]} 39. Rc7 {[%clk 0:00:16]}  Kf6 {[%clk 0:01:33]} 40. Rxf7+ {[%clk 0:00:16]}  Ke5 {[%clk 0:01:33]} 41. Bxb7 {[%clk 0:00:16]}  h5 {[%clk 0:01:31]} 42. Bxa6 {[%clk 0:00:15]}  Ra4 {[%clk 0:01:31]} 43. Bd3 {[%clk 0:00:13]}  Rxa5 {[%clk 0:01:17]} 44. Bxg6 {[%clk 0:00:13]}  h4 {[%clk 0:01:17]} 45. Rf5+ {[%clk 0:00:11]}  Ke6 {[%clk 0:01:17]} 46. Rxa5 {[%clk 0:00:11]}  Kf6 {[%clk 0:01:18]} 47. Rh5 {[%clk 0:00:10]} 1-0


[Site "https://www.chess.com"]

[Event "Titled Tuesday Blitz April 11 Early 2023"]
[White "Aravindh, Chithambaram VR."]
[Black "Zhigalko, Sergei"]
[WhiteFideId "5072786"]
[BlackFideId "13502956"]
[WhiteElo "2596"]
[BlackElo "2626"]
[Result "1-0"]
[Round "11"]
[TimeControl "180+2"]
[Date "2023.04.11"]
[WhiteClock "0:00:06"]
[BlackClock "0:00:04"]

1. c4 {[%clk 0:02:59]}  e5 {[%clk 0:02:59]} 2. b3 {[%clk 0:02:59]}  Nf6 {[%clk 0:02:53]} 3. Bb2 {[%clk 0:02:59]}  Nc6 {[%clk 0:02:53]} 4. Nf3 {[%clk 0:03:00]}  e4 {[%clk 0:02:50]} 5. Nd4 {[%clk 0:03:00]}  Bc5 {[%clk 0:02:50]} 6. Nf5 {[%clk 0:03:00]}  O-O {[%clk 0:02:48]} 7. e3 {[%clk 0:03:00]}  d6 {[%clk 0:02:43]} 8. Ng3 {[%clk 0:02:58]}  Re8 {[%clk 0:02:37]} 9. Nc3 {[%clk 0:02:46]}  Bg4 {[%clk 0:02:18]} 10. f3 {[%clk 0:02:43]}  exf3 {[%clk 0:02:04]} 11. gxf3 {[%clk 0:02:44]}  Bh5 {[%clk 0:02:03]} 12. Be2 {[%clk 0:02:39]}  Bg6 {[%clk 0:02:01]} 13. d4 {[%clk 0:01:47]}  Bb6 {[%clk 0:01:44]} 14. Qd2 {[%clk 0:01:43]}  Qe7 {[%clk 0:01:22]} 15. Kf2 {[%clk 0:01:37]}  Nh5 {[%clk 0:01:03]} 16. Nd5 {[%clk 0:01:34]}  Qh4 {[%clk 0:01:03]} 17. b4 {[%clk 0:01:24]}  a5 {[%clk 0:00:51]} 18. c5 {[%clk 0:01:24]}  Nxb4 {[%clk 0:00:23]} 19. Nxb4 {[%clk 0:01:07]}  dxc5 {[%clk 0:00:24]} 20. Nd5 {[%clk 0:01:08]}  cxd4 {[%clk 0:00:22]} 21. Bxd4 {[%clk 0:01:09]}  Rad8 {[%clk 0:00:20]} 22. Nxb6 {[%clk 0:01:07]}  c5 {[%clk 0:00:17]} 23. e4 {[%clk 0:00:10]}  Rxd4 {[%clk 0:00:11]} 24. Qc3 {[%clk 0:00:10]}  Nf4 {[%clk 0:00:08]} 25. Qxc5 {[%clk 0:00:10]}  Rd2 {[%clk 0:00:09]} 26. Rae1 {[%clk 0:00:09]}  Nd3+ {[%clk 0:00:09]} 27. Ke3 {[%clk 0:00:08]}  Nxc5 {[%clk 0:00:08]} 28. Kxd2 {[%clk 0:00:09]}  Qg5+ {[%clk 0:00:07]} 29. Kc2 {[%clk 0:00:09]}  Qf6 {[%clk 0:00:06]} 30. Nd5 {[%clk 0:00:09]}  Qc6 {[%clk 0:00:06]} 31. Kd2 {[%clk 0:00:09]}  Qa4 {[%clk 0:00:05]} 32. Ke3 {[%clk 0:00:09]}  Qa3+ {[%clk 0:00:05]} 33. Kf2 {[%clk 0:00:09]}  Ne6 {[%clk 0:00:05]} 34. Rd1 {[%clk 0:00:09]}  Qc5+ {[%clk 0:00:05]} 35. Kg2 {[%clk 0:00:09]}  h5 {[%clk 0:00:06]} 36. h4 {[%clk 0:00:09]}  Qc2 {[%clk 0:00:06]} 37. Kf2 {[%clk 0:00:08]}  Kf8 {[%clk 0:00:05]} 38. Nf1 {[%clk 0:00:08]}  Qxa2 {[%clk 0:00:05]} 39. Nfe3 {[%clk 0:00:09]}  Qa3 {[%clk 0:00:05]} 40. Rd2 {[%clk 0:00:07]}  Qd6 {[%clk 0:00:04]} 41. Nc4 {[%clk 0:00:05]}  Qc5+ {[%clk 0:00:04]} 42. Nce3 {[%clk 0:00:05]}  b5 {[%clk 0:00:04]} 43. Rb1 {[%clk 0:00:05]}  Qd6 {[%clk 0:00:04]} 44. Kg2 {[%clk 0:00:02]}  b4 {[%clk 0:00:04]} 45. Bf1 {[%clk 0:00:02]}  Nf4+ {[%clk 0:00:04]} 46. Kg1 {[%clk 0:00:02]}  Qc5 {[%clk 0:00:03]} 47. Rf2 {[%clk 0:00:02]}  Nxd5 {[%clk 0:00:03]} 48. Nxd5 {[%clk 0:00:03]}  Qa7 {[%clk 0:00:02]} 49. Kg2 {[%clk 0:00:03]}  Kg8 {[%clk 0:00:02]} 50. Rd1 {[%clk 0:00:03]}  Qb8 {[%clk 0:00:03]} 51. Rc1 {[%clk 0:00:04]}  Kh7 {[%clk 0:00:03]} 52. Rc6 {[%clk 0:00:03]}  Rd8 {[%clk 0:00:03]} 53. Rb6 {[%clk 0:00:04]}  Qa7 {[%clk 0:00:03]} 54. Rb5 {[%clk 0:00:04]}  Qa8 {[%clk 0:00:02]} 55. Rd2 {[%clk 0:00:04]}  Qa7 {[%clk 0:00:03]} 56. Nf6+ {[%clk 0:00:05]}  gxf6 {[%clk 0:00:03]} 57. Rxd8 {[%clk 0:00:05]}  Qe3 {[%clk 0:00:03]} 58. Rbb8 {[%clk 0:00:06]}  b3 {[%clk 0:00:03]} 59. Rh8+ {[%clk 0:00:06]}  Kg7 {[%clk 0:00:04]} 60. Rbg8# {[%clk 0:00:06]} 1-0


[Site "https://www.chess.com"]

[Event "Titled Tuesday Blitz April 11 Early 2023"]
[White "Ashraf, Artin"]
[Black "Gholami Orimi, Mahdi"]
[WhiteFideId "22514805"]
[BlackFideId "12558486"]
[WhiteElo "2188"]
[BlackElo "2363"]
[Result "0-1"]
[Round "11"]
[TimeControl "180+2"]
[Date "2023.04.11"]
[WhiteClock "0:00:04"]
[BlackClock "0:00:03"]

1. Nf3 {[%clk 0:03:00]}  Nf6 {[%clk 0:02:57]} 2. g3 {[%clk 0:02:59]}  b5 {[%clk 0:02:58]} 3. Bg2 {[%clk 0:02:57]}  Bb7 {[%clk 0:02:57]} 4. O-O {[%clk 0:02:56]}  e6 {[%clk 0:02:58]} 5. b3 {[%clk 0:02:55]}  c5 {[%clk 0:02:58]} 6. c4 {[%clk 0:02:55]}  bxc4 {[%clk 0:02:43]} 7. bxc4 {[%clk 0:02:56]}  Be7 {[%clk 0:02:43]} 8. Nc3 {[%clk 0:02:53]}  O-O {[%clk 0:02:44]} 9. Rb1 {[%clk 0:02:43]}  Bc6 {[%clk 0:02:44]} 10. d3 {[%clk 0:02:43]}  Na6 {[%clk 0:02:43]} 11. Bf4 {[%clk 0:02:40]}  d6 {[%clk 0:02:43]} 12. a3 {[%clk 0:02:34]}  Rb8 {[%clk 0:02:41]} 13. Bd2 {[%clk 0:02:31]}  Qd7 {[%clk 0:02:37]} 14. Qc2 {[%clk 0:02:29]}  Rb6 {[%clk 0:02:32]} 15. Rxb6 {[%clk 0:02:22]}  axb6 {[%clk 0:02:33]} 16. Rb1 {[%clk 0:02:22]}  Rb8 {[%clk 0:02:33]} 17. Ne1 {[%clk 0:02:16]}  Bxg2 {[%clk 0:02:27]} 18. Kxg2 {[%clk 0:02:16]}  d5 {[%clk 0:02:27]} 19. Nf3 {[%clk 0:02:15]}  d4 {[%clk 0:02:12]} 20. Na4 {[%clk 0:02:09]}  Qc6 {[%clk 0:02:04]} 21. Qb3 {[%clk 0:01:59]}  Nc7 {[%clk 0:01:35]} 22. Bf4 {[%clk 0:01:30]}  Bd6 {[%clk 0:01:35]} 23. Bg5 {[%clk 0:01:16]}  Nd7 {[%clk 0:01:35]} 24. e4 {[%clk 0:01:15]}  dxe3 {[%clk 0:01:23]} 25. Nc3 {[%clk 0:00:54]}  exf2 {[%clk 0:01:08]} 26. Kxf2 {[%clk 0:00:50]}  f6 {[%clk 0:01:08]} 27. Be3 {[%clk 0:00:49]}  Ne5 {[%clk 0:01:09]} 28. Nxe5 {[%clk 0:00:44]}  Bxe5 {[%clk 0:01:10]} 29. Na4 {[%clk 0:00:45]}  Bd6 {[%clk 0:00:57]} 30. Qd1 {[%clk 0:00:33]}  Bf8 {[%clk 0:00:48]} 31. Nc3 {[%clk 0:00:26]}  Ra8 {[%clk 0:00:48]} 32. Qb3 {[%clk 0:00:25]}  Qd7 {[%clk 0:00:41]} 33. Ne4 {[%clk 0:00:18]}  Ra6 {[%clk 0:00:25]} 34. Ke2 {[%clk 0:00:16]}  Qc6 {[%clk 0:00:22]} 35. Kf2 {[%clk 0:00:16]}  h6 {[%clk 0:00:22]} 36. Nc3 {[%clk 0:00:15]}  Qd7 {[%clk 0:00:21]} 37. Ne4 {[%clk 0:00:10]}  f5 {[%clk 0:00:20]} 38. Nd2 {[%clk 0:00:11]}  e5 {[%clk 0:00:19]} 39. Nf3 {[%clk 0:00:11]}  Bd6 {[%clk 0:00:19]} 40. Bd2 {[%clk 0:00:10]}  e4 {[%clk 0:00:17]} 41. Nh4 {[%clk 0:00:06]}  Be5 {[%clk 0:00:17]} 42. Re1 {[%clk 0:00:06]}  Ne6 {[%clk 0:00:13]} 43. Nxf5 {[%clk 0:00:05]}  Nd4 {[%clk 0:00:11]} 44. Nxd4 {[%clk 0:00:04]}  Bxd4+ {[%clk 0:00:11]} 45. Kg2 {[%clk 0:00:05]}  exd3 {[%clk 0:00:11]} 46. Qxd3 {[%clk 0:00:05]}  Qc6+ {[%clk 0:00:12]} 47. Kh3 {[%clk 0:00:05]}  Ra8 {[%clk 0:00:10]} 48. Bc1 {[%clk 0:00:03]}  Qd7+ {[%clk 0:00:07]} 49. Kg2 {[%clk 0:00:03]}  Rf8 {[%clk 0:00:07]} 50. Re2 {[%clk 0:00:03]}  Qc6+ {[%clk 0:00:06]} 51. Qe4 {[%clk 0:00:04]}  Rf2+ {[%clk 0:00:05]} 52. Kh3 {[%clk 0:00:03]}  Qd7+ {[%clk 0:00:04]} 53. g4 {[%clk 0:00:03]}  Rf8 {[%clk 0:00:02]} 54. Kg2 {[%clk 0:00:03]}  Kh8 {[%clk 0:00:02]} 55. h3 {[%clk 0:00:03]}  Qf7 {[%clk 0:00:03]} 56. Be3 {[%clk 0:00:02]}  Qf1+ {[%clk 0:00:03]} 57. Kg3 {[%clk 0:00:03]}  Bf6 {[%clk 0:00:03]} 58. Bd4 {[%clk 0:00:04]}  Bxd4 {[%clk 0:00:03]} 0-1


[Site "https://www.chess.com"]

[Event "Titled Tuesday Blitz April 11 Early 2023"]
[White "Lazavik, Denis"]
[Black "Pranesh M"]
[WhiteFideId "13515110"]
[BlackFideId "35028600"]
[WhiteElo "2560"]
[BlackElo "2437"]
[Result "1-0"]
[Round "11"]
[TimeControl "180+2"]
[Date "2023.04.11"]
[WhiteClock "0:01:20"]
[BlackClock "0:00:36"]

1. d4 {[%clk 0:02:56]}  d5 {[%clk 0:03:00]} 2. c4 {[%clk 0:02:55]}  c6 {[%clk 0:03:00]} 3. Nf3 {[%clk 0:02:56]}  e6 {[%clk 0:03:00]} 4. g3 {[%clk 0:02:55]}  Nf6 {[%clk 0:03:00]} 5. Bg2 {[%clk 0:02:55]}  dxc4 {[%clk 0:03:00]} 6. O-O {[%clk 0:02:51]}  b5 {[%clk 0:03:01]} 7. Nc3 {[%clk 0:02:49]}  Bb7 {[%clk 0:03:01]} 8. e4 {[%clk 0:02:49]}  a6 {[%clk 0:02:59]} 9. e5 {[%clk 0:02:48]}  Nd5 {[%clk 0:02:59]} 10. Ng5 {[%clk 0:02:48]}  h6 {[%clk 0:02:46]} 11. Qh5 {[%clk 0:02:43]}  g6 {[%clk 0:02:45]} 12. Qh3 {[%clk 0:02:43]}  c5 {[%clk 0:02:40]} 13. Nxe6 {[%clk 0:02:37]}  fxe6 {[%clk 0:02:15]} 14. Qxe6+ {[%clk 0:02:37]}  Qe7 {[%clk 0:02:15]} 15. Qxg6+ {[%clk 0:02:26]}  Qf7 {[%clk 0:02:15]} 16. Qxf7+ {[%clk 0:02:26]}  Kxf7 {[%clk 0:02:16]} 17. Nxd5 {[%clk 0:02:27]}  cxd4 {[%clk 0:02:09]} 18. e6+ {[%clk 0:02:27]}  Ke8 {[%clk 0:01:41]} 19. Nc7+ {[%clk 0:01:52]}  Ke7 {[%clk 0:01:40]} 20. Nxa8 {[%clk 0:01:52]}  Bxg2 {[%clk 0:01:40]} 21. Kxg2 {[%clk 0:01:53]}  Kxe6 {[%clk 0:01:41]} 22. Re1+ {[%clk 0:01:53]}  Kd7 {[%clk 0:01:37]} 23. Bf4 {[%clk 0:01:53]}  Bd6 {[%clk 0:01:37]} 24. Nb6+ {[%clk 0:01:51]}  Kc7 {[%clk 0:01:37]} 25. Bxd6+ {[%clk 0:01:51]}  Kxd6 {[%clk 0:01:38]} 26. a4 {[%clk 0:01:48]}  Nc6 {[%clk 0:01:32]} 27. axb5 {[%clk 0:01:47]}  axb5 {[%clk 0:01:33]} 28. Ra6 {[%clk 0:01:45]}  d3 {[%clk 0:01:26]} 29. Rc1 {[%clk 0:01:42]}  Rd8 {[%clk 0:00:55]} 30. Nxc4+ {[%clk 0:01:22]}  bxc4 {[%clk 0:00:56]} 31. Rxc4 {[%clk 0:01:22]}  d2 {[%clk 0:00:57]} 32. Raxc6+ {[%clk 0:01:20]}  Ke5 {[%clk 0:00:53]} 33. Rc1 {[%clk 0:01:17]}  dxc1=Q {[%clk 0:00:50]} 34. Rxc1 {[%clk 0:01:16]}  Rb8 {[%clk 0:00:49]} 35. Rc6 {[%clk 0:01:16]}  Rxb2 {[%clk 0:00:47]} 36. Rxh6 {[%clk 0:01:16]}  Ke4 {[%clk 0:00:46]} 37. h4 {[%clk 0:01:16]}  Kd3 {[%clk 0:00:47]} 38. Re6 {[%clk 0:01:16]}  Kd4 {[%clk 0:00:47]} 39. Re3 {[%clk 0:01:17]}  Rb5 {[%clk 0:00:48]} 40. Kf3 {[%clk 0:01:17]}  Rf5+ {[%clk 0:00:48]} 41. Kg2 {[%clk 0:01:17]}  Ra5 {[%clk 0:00:49]} 42. g4 {[%clk 0:01:18]}  Ra8 {[%clk 0:00:46]} 43. Kg3 {[%clk 0:01:18]}  Rg8 {[%clk 0:00:47]} 44. h5 {[%clk 0:01:18]}  Ra8 {[%clk 0:00:48]} 45. h6 {[%clk 0:01:19]}  Ra1 {[%clk 0:00:49]} 46. g5 {[%clk 0:01:19]}  Rh1 {[%clk 0:00:48]} 47. Kg4 {[%clk 0:01:19]}  Rf1 {[%clk 0:00:48]} 48. h7 {[%clk 0:01:19]}  Rxf2 {[%clk 0:00:49]} 49. Rh3 {[%clk 0:01:19]}  Rg2+ {[%clk 0:00:48]} 50. Kh4 {[%clk 0:01:19]}  Kc5 {[%clk 0:00:39]} 51. h8=Q {[%clk 0:01:19]}  Kb6 {[%clk 0:00:38]} 52. Rb3+ {[%clk 0:01:19]}  Ka7 {[%clk 0:00:36]} 53. Qd4+ {[%clk 0:01:19]}  Ka6 {[%clk 0:00:36]} 54. Qa4# {[%clk 0:01:20]} 1-0


[Site "https://www.chess.com"]